fUSD/lending_fUSD_20250811
["ID","MTS","AMOUNT","RATE_DAILY","PERIOD"]
[378582398,1754917835161,-400.0,0.00016617,2]
[378582399,1754917835172,-491.99,0.00016617,2]
[378582400,1754917835182,-400.0,0.00016617,2]
[378582401,1754917835191,-583.79,0.00016617,2]
[378582402,1754917835201,-400.0,0.00016617,2]
[378582403,1754917835210,-400.0,0.00016617,2]
[378582404,1754917835220,-400.0,0.00016617,2]
[378582405,1754917835229,-400.0,0.00016617,2]
[378582406,1754917835239,-400.0,0.00016617,2]
[378582407,1754917835248,-400.0,0.00016617,2]
[378582408,1754917835257,-400.0,0.00016617,2]
[378582409,1754917835267,-400.0,0.00016617,2]
[378582410,1754917835276,-400.0,0.00016617,2]
[378582411,1754917835285,-400.0,0.00016617,2]
[378582412,1754917835295,-400.0,0.00016617,2]
[378582413,1754917835304,-400.0,0.00016617,2]
[378582414,1754917835314,-400.0,0.00016617,2]
[378582415,1754917835324,-400.0,0.00016617,2]
[378582416,1754917835334,-400.0,0.00016617,2]
[378582417,1754917835344,-1110.3,0.00016617,2]
[378582418,1754917835353,-791.23,0.00016617,2]
[378582419,1754917835363,-400.0,0.00016617,2]
[378582420,1754917835372,-411.73,0.00016617,2]
[378582421,1754917835382,-400.0,0.00016617,2]
[378582422,1754917835392,-400.0,0.00016617,2]
[378582423,1754917835401,-400.0,0.00016617,2]
[378582424,1754917835410,-400.0,0.00016617,2]
[378582425,1754917835420,-400.0,0.00016617,2]
[378582426,1754917835429,-1567.98,0.00016617,2]
[378582427,1754917835438,-408.23,0.00016617,2]
[378582428,1754917835449,-206.85882863,0.00016617,2]
[378582429,1754917835459,-400.0,0.00016617,2]
[378582430,1754917835468,-1395.83,0.00016617,2]
[378582431,1754917835477,-500.0,0.00016617,2]
[378582432,1754917835487,-400.0,0.00016617,2]
[378582433,1754917835496,-308.06678804,0.00016617,2]
[378582434,1754917835505,-400.0,0.00016617,2]
[378582435,1754917835514,-400.0,0.00016617,2]
[378582436,1754917835523,-758.38,0.00016617,2]
[378582437,1754917835533,-400.0,0.00016617,2]
[378582438,1754917835542,-400.0,0.00016617,2]
[378582439,1754917835551,-400.0,0.00016617,2]
[378582440,1754917835560,-500.0,0.00016617,2]
[378582441,1754917835569,-521.86,0.00016617,2]
[378582442,1754917835579,-161.66508275,0.00016617,2]
[378582443,1754917835588,-644.9,0.00016617,2]
[378582444,1754917835597,-462.94033485,0.00016617,2]
[378582445,1754917835606,-744.12,0.00016617,2]
[378582446,1754917835616,-400.0,0.00016617,2]
[378582447,1754917835625,-400.0,0.00016617,2]
[378582448,1754917835634,-400.0,0.00016617,2]
[378582449,1754917835643,-400.0,0.00016617,2]
[378582450,1754917835652,-468.19,0.00016617,2]
[378582451,1754917835661,-454.67,0.00016617,2]
[378582452,1754917835674,-534.08,0.00016617,2]
[378582453,1754917835683,-757.55,0.00016617,2]
[378582454,1754917835692,-400.0,0.00016617,2]
[378582455,1754917835701,-400.0,0.00016617,2]
[378582456,1754917835710,-400.0,0.00016617,2]
[378582457,1754917835719,-400.0,0.00016617,2]
[378582458,1754917835728,-400.0,0.00016617,2]
[378582459,1754917835738,-973.23,0.00016617,2]
[378582460,1754917835748,-400.0,0.00016617,2]
[378582461,1754917835757,-400.0,0.00016617,2]
[378582462,1754917835766,-400.0,0.00016617,2]
[378582463,1754917835776,-400.0,0.00016617,2]
[378582464,1754917835785,-400.0,0.00016617,2]
[378582465,1754917835794,-400.0,0.00016617,2]
[378582466,1754917835803,-400.0,0.00016617,2]
[378582467,1754917835812,-529.68,0.00016617,2]
[378582468,1754917835822,-400.0,0.00016617,2]
[378582469,1754917835831,-400.0,0.00016617,2]
[378582470,1754917835840,-400.0,0.00016617,2]
[378582471,1754917835848,-400.0,0.00016617,2]
[378582472,1754917835858,-1000.0,0.00016617,2]
[378582473,1754917835867,-400.0,0.00016617,2]
[378582474,1754917835876,-400.0,0.00016617,2]
[378582475,1754917835886,-400.0,0.00016617,2]
[378582476,1754917835899,-400.0,0.00016617,2]
[378582477,1754917835908,-470.67,0.00016617,2]
[378582478,1754917835919,-1344.06,0.00016617,2]
[378582479,1754917835928,-437.30761233,0.00016617,2]
[378582480,1754917835938,-1580.65659169,0.00016617,2]
[378582481,1754917835984,-122.89340831,0.00016617,2]
[378582482,1754917835994,-400.0,0.00016617,2]
[378582483,1754917836003,-400.0,0.00016617,2]
[378582484,1754917836013,-419.41,0.00016617,2]
[378582485,1754917836022,-363.60464572,0.00016617,2]
[378582486,1754917836034,-36.39535428,0.00016617,2]
[378582487,1754917836043,-400.0,0.00016617,2]
[378582488,1754917836052,-18.72464572,0.00016617,2]
[378582489,1754917836064,-305.4514,0.00016617,2]
[378582490,1754917836104,-75.82395428,0.00016617,2]
[378582491,1754917836114,-418.19761826,0.00016617,2]
[378582492,1754917836123,-400.0,0.00016617,2]
[378582493,1754917836132,-591.52,0.00016617,2]
[378582494,1754917836142,-681.35,0.00016617,2]
[378582495,1754917836152,-400.0,0.00016617,2]
[378582496,1754917836161,-400.0,0.00016617,2]
[378582497,1754917836172,-400.0,0.00016617,2]
[378582498,1754917836182,-400.0,0.00016617,2]
[378582499,1754917836191,-400.0,0.00016617,2]
[378582500,1754917836200,-868.33,0.00016617,2]
[378582501,1754917836210,-829.38,0.00016617,2]
[378582502,1754917836220,-400.0,0.00016617,2]
[378582503,1754917836230,-400.0,0.00016617,2]
[378582504,1754917836239,-400.0,0.00016617,2]
[378582505,1754917836249,-400.0,0.00016617,2]
[378582506,1754917836258,-439.46,0.00016617,2]
[378582507,1754917836268,-400.0,0.00016617,2]
[378582508,1754917836277,-400.0,0.00016617,2]
[378582509,1754917836286,-1058.663944,0.00016617,2]
[378582510,1754917836295,-401.1882318,0.00016617,2]
[378582511,1754917836306,-400.0,0.00016617,2]
[378582512,1754917836315,-400.0,0.00016617,2]
[378582513,1754917836324,-578.62,0.00016617,2]
[378582514,1754917836333,-444.53774455,0.00016617,2]
[378582515,1754917836343,-400.0,0.00016617,2]
[378582516,1754917836352,-400.0,0.00016617,2]
[378582517,1754917836361,-400.0,0.00016617,2]
[378582518,1754917836371,-400.0,0.00016617,2]
[378582519,1754917836380,-664.63,0.00016617,2]
[378582520,1754917836389,-400.0,0.00016617,2]
[378582521,1754917836399,-482.23,0.00016617,2]
[378582522,1754917836408,-477.76,0.00016617,2]
[378582523,1754917836419,-400.0,0.00016617,2]
[378582524,1754917836428,-400.0,0.00016617,2]
[378582525,1754917836437,-400.0,0.00016617,2]
[378582526,1754917836446,-400.0,0.00016617,2]
[378582527,1754917836455,-400.0,0.00016617,2]
[378582528,1754917836469,-513.85,0.00016617,2]
[378582529,1754917836478,-400.0,0.00016617,2]
[378582530,1754917836487,-157.25271,0.00016617,2]
[378582531,1754917836497,-400.0,0.00016617,2]
[378582532,1754917836506,-400.0,0.00016617,2]
[378582533,1754917836516,-710.48,0.00016617,2]
[378582534,1754917836525,-400.0,0.00016617,2]
[378582535,1754917836534,-400.0,0.00016617,2]
[378582536,1754917836544,-400.0,0.00016617,2]
[378582537,1754917836554,-664.13,0.00016617,2]
[378582538,1754917836564,-400.80414307,0.00016617,2]
[378582539,1754917836575,-1182.13,0.00016617,2]
[378582540,1754917836584,-461.07711217,0.00016617,2]
[378582541,1754917836596,-400.0,0.00016617,2]
[378582542,1754917836609,-400.0,0.00016617,2]
[378582543,1754917836619,-400.0,0.00016617,2]
[378582544,1754917836628,-1041.74,0.00016617,2]
[378582545,1754917836639,-400.0,0.00016617,2]
[378582546,1754917836649,-400.67559132,0.00016617,2]
[378582547,1754917836658,-3405.73,0.00016617,2]
[378582548,1754917836669,-400.0,0.00016617,2]
[378582549,1754917836678,-400.0,0.00016617,2]
[378582550,1754917836688,-546.16,0.00016617,2]
[378582551,1754917836699,-1575.97396671,0.00016617,2]
[378582552,1754917836720,-1197.2961,0.00016617,2]
[378582658,1754917839248,-996.075211,0.00016616,2]
[378582660,1754917839258,-1539.69109602,0.00016617,2]
[378582662,1754917839269,-918.06826404,0.00016617,2]
[378582664,1754917839281,-240.55057323,0.00016617,2]
[378582666,1754917839291,-400.0,0.00016617,2]
[378582668,1754917839301,-400.0,0.00016617,2]
[378582670,1754917839310,-400.0,0.00016617,2]
[378582672,1754917839319,-360.21273265,0.00016617,2]
[378582752,1754917840117,-39.78726735,0.00016617,2]
[378582754,1754917840126,-802.8,0.00016617,2]
[378582756,1754917840135,-400.0,0.00016617,2]
[378582758,1754917840145,-500.0,0.00016617,2]
[378582760,1754917840154,-1463.82139041,0.00016617,2]
[378582762,1754917840165,-463.89860959,0.00016617,2]
[378582764,1754917840176,-400.0,0.00016617,2]
[378582766,1754917840187,-142.39355041,0.00016617,2]
[378582775,1754917840270,-400.0,0.00016616,2]
[378582777,1754917840279,-69.55,0.00016617,2]
[378582780,1754917840290,-756.96238713,0.00016617,2]
[378582782,1754917840305,-591.23116234,0.00016617,2]
[378582902,1754917841538,-175.17290012,0.00016617,2]
[378582904,1754917841547,-407.1,0.00016617,2]
[378582906,1754917841557,-16.67709988,0.00016617,2]
[378582908,1754917841568,-273.6317702,0.00016617,2]
[378582910,1754917841579,-264.64112992,0.00016617,2]
[378582912,1754917841588,-400.0,0.00016617,2]
[378582914,1754917841597,-400.0,0.00016617,2]
[378582916,1754917841607,-400.0,0.00016617,2]
[378582918,1754917841616,-400.0,0.00016617,2]
[378582920,1754917841625,-1436.01,0.00016617,2]
[378582922,1754917841634,-400.0,0.00016617,2]
[378582923,1754917841643,-400.0,0.00016617,2]
[378582925,1754917841653,-400.0,0.00016617,2]
[378582927,1754917841662,-42.52937017,0.00016617,2]
[378582930,1754917841677,-357.47062983,0.00016617,2]
[378582932,1754917841686,-142.52937017,0.00016617,2]
[378583051,1754917843254,-257.47062983,0.00016617,2]
[378583053,1754917843263,-1762.37,0.00016617,2]
[378583055,1754917843273,-400.0,0.00016617,2]
[378583057,1754917843282,-400.0,0.00016617,2]
[378583059,1754917843291,-400.0,0.00016617,2]
[378583061,1754917843301,-400.0,0.00016617,2]
[378583063,1754917843310,-400.0,0.00016617,2]
[378583065,1754917843320,-505.54196798,0.00016617,2]
[378583067,1754917843329,-400.0,0.00016617,2]
[378583069,1754917843338,-400.69386242,0.00016617,2]
[378583071,1754917843348,-400.0,0.00016617,2]
[378583073,1754917843357,-400.0,0.00016617,2]
[378583075,1754917843366,-400.0,0.00016617,2]
[378583077,1754917843376,-400.0,0.00016617,2]
[378583079,1754917843385,-400.0,0.00016617,2]
[378583081,1754917843394,-962.78,0.00016617,2]
[378583083,1754917843403,-1188.93,0.00016617,2]
[378583085,1754917843413,-400.0,0.00016617,2]
[378583087,1754917843424,-400.0,0.00016617,2]
[378583089,1754917843433,-400.0,0.00016617,2]
[378583091,1754917843443,-400.0,0.00016617,2]
[378583092,1754917843452,-400.0,0.00016617,2]
[378583094,1754917843461,-1570.93,0.00016617,2]
[378583097,1754917843471,-400.83079055,0.00016617,2]
[378583099,1754917843481,-400.0,0.00016617,2]
[378583101,1754917843490,-500.0,0.00016617,2]
[378583102,1754917843499,-751.06,0.00016617,2]
[378583104,1754917843509,-400.0,0.00016617,2]
[378583106,1754917843518,-759.6,0.00016617,2]
[378583108,1754917843527,-400.0,0.00016617,2]
[378583110,1754917843536,-400.0,0.00016617,2]
[378583112,1754917843545,-400.0,0.00016617,2]
[378583115,1754917843555,-400.0,0.00016617,2]
[378583118,1754917843564,-400.0,0.00016617,2]
[378583121,1754917843573,-400.0,0.00016617,2]
[378583123,1754917843582,-400.0,0.00016617,2]
[378583125,1754917843592,-754.74,0.00016617,2]
[378583128,1754917843602,-400.0,0.00016617,2]
[378583130,1754917843611,-438.55,0.00016617,2]
[378583131,1754917843621,-744.19,0.00016617,2]
[378583133,1754917843630,-400.0,0.00016617,2]
[378583136,1754917843639,-915.35,0.00016617,2]
[378583137,1754917843648,-400.0,0.00016617,2]
[378583139,1754917843658,-400.0,0.00016617,2]
[378583141,1754917843667,-400.0,0.00016617,2]
[378583143,1754917843677,-400.0,0.00016617,2]
[378583145,1754917843686,-400.0,0.00016617,2]
[378583147,1754917843695,-400.0,0.00016617,2]
[378583149,1754917843704,-400.0,0.00016617,2]
[378583151,1754917843713,-400.0,0.00016617,2]
[378583153,1754917843722,-400.0,0.00016617,2]
[378583155,1754917843732,-389.52331811,0.00016617,2]
[378583157,1754917843741,-400.0,0.00016617,2]
[378583159,1754917843750,-400.0,0.00016617,2]
[378583161,1754917843760,-400.0,0.00016617,2]
[378583163,1754917843769,-400.0,0.00016617,2]
[378583165,1754917843778,-400.0,0.00016617,2]
[378583167,1754917843787,-1189.19,0.00016617,2]
[378583169,1754917843796,-400.0,0.00016617,2]
[378583171,1754917843806,-400.0,0.00016617,2]
[378583173,1754917843815,-826.61,0.00016617,2]
[378583175,1754917843824,-400.0,0.00016617,2]
[378583177,1754917843833,-400.0,0.00016617,2]
[378583179,1754917843842,-400.0,0.00016617,2]
[378583181,1754917843852,-401.79897111,0.00016617,2]
[378583183,1754917843861,-400.0,0.00016617,2]
[378583185,1754917843870,-400.0,0.00016617,2]
[378583187,1754917843880,-484.54,0.00016617,2]
[378583189,1754917843890,-400.0,0.00016617,2]
[378583191,1754917843903,-844.6,0.00016617,2]
[378583193,1754917843912,-680.94,0.00016617,2]
[378583195,1754917843921,-400.0,0.00016617,2]
[378583197,1754917843931,-255.9874058,0.00016617,2]
[378583199,1754917843940,-400.0,0.00016617,2]
[378583201,1754917843949,-400.0,0.00016617,2]
[378583203,1754917843958,-400.0,0.00016617,2]
[378583205,1754917843969,-400.0,0.00016617,2]
[378583207,1754917843978,-1562.23,0.00016617,2]
[378583209,1754917843987,-400.0,0.00016617,2]
[378583211,1754917843995,-404.85430298,0.00016617,2]
[378583213,1754917844005,-400.0,0.00016617,2]
[378583215,1754917844014,-165.97445425,0.00016617,2]
[378583217,1754917844023,-500.0,0.00016617,2]
[378583219,1754917844032,-1345.93,0.00016617,2]
[378583221,1754917844041,-468.35981137,0.00016617,2]
[378583223,1754917844050,-400.0,0.00016617,2]
[378583225,1754917844059,-400.0,0.00016617,2]
[378583227,1754917844068,-400.0,0.00016617,2]
[378583229,1754917844077,-500.0,0.00016617,2]
[378583231,1754917844086,-606.1,0.00016617,2]
[378583233,1754917844095,-400.0,0.00016617,2]
[378583234,1754917844104,-400.0,0.00016617,2]
[378583236,1754917844113,-400.0,0.00016617,2]
[378583238,1754917844122,-400.0,0.00016617,2]
[378583241,1754917844132,-2222.26,0.00016617,2]
[378583243,1754917844142,-982.94,0.00016617,2]
[378583244,1754917844151,-400.0,0.00016617,2]
[378583247,1754917844160,-400.0,0.00016617,2]
[378583249,1754917844170,-567.84,0.00016617,2]
[378583251,1754917844179,-400.0,0.00016617,2]
[378583252,1754917844189,-1576.08,0.00016617,2]
[378583254,1754917844198,-400.0,0.00016617,2]
[378583256,1754917844207,-400.0,0.00016617,2]
[378583258,1754917844216,-402.50273803,0.00016617,2]
[378583260,1754917844226,-400.0,0.00016617,2]
[378583262,1754917844235,-400.0,0.00016617,2]
[378583264,1754917844244,-400.0,0.00016617,2]
[378583267,1754917844254,-400.0,0.00016617,2]
[378583269,1754917844263,-400.0,0.00016617,2]
[378583270,1754917844273,-367.39254392,0.00016617,2]
[378583272,1754917844282,-400.0,0.00016617,2]
[378583274,1754917844292,-400.0,0.00016617,2]
[378583276,1754917844302,-485.56,0.00016617,2]
[378583278,1754917844311,-400.0,0.00016617,2]
[378583280,1754917844320,-400.0,0.00016617,2]
[378583282,1754917844329,-1218.46,0.00016617,2]
[378583284,1754917844339,-400.0,0.00016617,2]
[378583286,1754917844348,-400.0,0.00016617,2]
[378583288,1754917844358,-400.0,0.00016617,2]
[378583290,1754917844367,-400.0,0.00016617,2]
[378583292,1754917844377,-400.0,0.00016617,2]
[378583294,1754917844386,-400.0,0.00016617,2]
[378583296,1754917844396,-400.0,0.00016617,2]
[378583298,1754917844405,-400.0,0.00016617,2]
[378583300,1754917844414,-400.0,0.00016617,2]
[378583302,1754917844424,-1240.02,0.00016617,2]
[378583304,1754917844434,-400.0,0.00016617,2]
[378583306,1754917844444,-816.76,0.00016617,2]
[378583308,1754917844453,-400.0,0.00016617,2]
[378583310,1754917844462,-400.0,0.00016617,2]
[378583312,1754917844471,-400.0,0.00016617,2]
[378583314,1754917844480,-400.0,0.00016617,2]
[378583316,1754917844489,-400.0,0.00016617,2]
[378583318,1754917844498,-400.0,0.00016617,2]
[378583320,1754917844507,-400.0,0.00016617,2]
[378583322,1754917844516,-780.27,0.00016617,2]
[378583324,1754917844526,-400.0,0.00016617,2]
[378583326,1754917844535,-720.34,0.00016617,2]
[378583328,1754917844544,-400.0,0.00016617,2]
[378583330,1754917844554,-400.0,0.00016617,2]
[378583332,1754917844563,-470.98,0.00016617,2]
[378583334,1754917844572,-401.80159907,0.00016617,2]
[378583336,1754917844581,-1133.42,0.00016617,2]
[378583337,1754917844591,-774.8,0.00016617,2]
[378583338,1754917844600,-400.0,0.00016617,2]
[378583339,1754917844610,-706.23,0.00016617,2]
[378583340,1754917844619,-400.0,0.00016617,2]
[378583341,1754917844628,-1735.68,0.00016617,2]
[378583343,1754917844638,-400.0,0.00016617,2]
[378583345,1754917844647,-400.0,0.00016617,2]
[378583347,1754917844657,-400.0,0.00016617,2]
[378583349,1754917844666,-400.0,0.00016617,2]
[378583351,1754917844677,-400.0,0.00016617,2]
[378583353,1754917844686,-1171.23,0.00016617,2]
[378583355,1754917844695,-400.0,0.00016617,2]
[378583357,1754917844704,-400.0,0.00016617,2]
[378583359,1754917844713,-460.1891787,0.00016617,2]
[378583361,1754917844722,-400.0,0.00016617,2]
[378583363,1754917844731,-400.0,0.00016617,2]
[378583365,1754917844741,-400.0,0.00016617,2]
[378583367,1754917844750,-400.0,0.00016617,2]
[378583369,1754917844759,-1140.27,0.00016617,2]
[378583371,1754917844768,-416.06,0.00016617,2]
[378583373,1754917844778,-366.06596517,0.00016617,2]
[378583375,1754917844786,-500.0,0.00016617,2]
[378583377,1754917844796,-400.0,0.00016617,2]
[378583379,1754917844805,-400.0,0.00016617,2]
[378583381,1754917844814,-420.54,0.00016617,2]
[378583383,1754917844823,-400.0,0.00016617,2]
[378583385,1754917844832,-1710.96,0.00016617,2]
[378583387,1754917844842,-400.0,0.00016617,2]
[378583389,1754917844851,-400.0,0.00016617,2]
[378583391,1754917844860,-400.0,0.00016617,2]
[378583393,1754917844869,-223.15876995,0.00016617,2]
[378583394,1754917844878,-4732.04,0.00016617,2]
[378583397,1754917844888,-400.0,0.00016617,2]
[378583398,1754917844901,-400.0,0.00016617,2]
[378583401,1754917844910,-400.0,0.00016617,2]
[378583402,1754917844920,-495.83,0.00016617,2]
[378583405,1754917844933,-1091.82,0.00016617,2]
[378583407,1754917844943,-400.0,0.00016617,2]
[378583409,1754917844953,-400.0,0.00016617,2]
[378583411,1754917844962,-749.23,0.00016617,2]
[378583413,1754917844974,-400.0,0.00016617,2]
[378583415,1754917844984,-400.0,0.00016617,2]
[378583417,1754917844993,-400.0,0.00016617,2]
[378583419,1754917845004,-436.09,0.00016617,2]
[378583421,1754917845013,-400.0,0.00016617,2]
[378583423,1754917845023,-400.0,0.00016617,2]
[378583425,1754917845032,-400.0,0.00016617,2]
[378583427,1754917845042,-3807.52,0.00016617,2]
[378583429,1754917845052,-400.0,0.00016617,2]
[378583431,1754917845061,-400.0,0.00016617,2]
[378583433,1754917845071,-400.0,0.00016617,2]
[378583435,1754917845080,-365.80697506,0.00016617,2]
[378583437,1754917845090,-400.0,0.00016617,2]
[378583439,1754917845099,-513.13,0.00016617,2]
[378583441,1754917845108,-518.5,0.00016617,2]
[378583443,1754917845118,-400.0,0.00016617,2]
[378583445,1754917845127,-706.55,0.00016617,2]
[378583447,1754917845136,-980.22,0.00016617,2]
[378583449,1754917845146,-400.0,0.00016617,2]
[378583451,1754917845155,-400.0,0.00016617,2]
[378583453,1754917845165,-400.0,0.00016617,2]
[378583455,1754917845178,-400.0,0.00016617,2]
[378583457,1754917845187,-400.0,0.00016617,2]
[378583459,1754917845197,-400.0,0.00016618,2]
[378583461,1754917845206,-400.0,0.00016618,2]
[378583463,1754917845215,-400.0,0.00016618,2]
[378583465,1754917845225,-400.0,0.00016618,2]
[378583467,1754917845234,-489.28,0.00016618,2]
[378583469,1754917845243,-400.0,0.00016618,2]
[378583471,1754917845252,-400.0,0.00016618,2]
[378583473,1754917845262,-400.0,0.00016618,2]
[378583475,1754917845271,-400.0,0.00016618,2]
[378583477,1754917845280,-400.0,0.00016618,2]
[378583479,1754917845290,-400.0,0.00016618,2]
[378583481,1754917845299,-400.0,0.00016618,2]
[378583483,1754917845308,-400.0,0.00016618,2]
[378583485,1754917845318,-400.0,0.00016618,2]
[378583487,1754917845327,-400.0,0.00016618,2]
[378583489,1754917845336,-400.0,0.00016618,2]
[378583491,1754917845347,-400.0,0.00016618,2]
[378583493,1754917845356,-400.0,0.00016618,2]
[378583495,1754917845366,-400.0,0.00016618,2]
[378583497,1754917845377,-400.0,0.00016618,2]
[378583499,1754917845386,-400.0,0.00016618,2]
[378583501,1754917845395,-400.0,0.00016618,2]
[378583503,1754917845405,-400.0,0.00016618,2]
[378583505,1754917845414,-511.46,0.00016618,2]
[378583507,1754917845424,-400.0,0.00016618,2]
[378583509,1754917845433,-400.0,0.00016618,2]
[378583511,1754917845442,-400.0,0.00016618,2]
[378583513,1754917845451,-822.95,0.00016618,2]
[378583515,1754917845460,-400.0,0.00016618,2]
[378583517,1754917845470,-500.0,0.00016618,2]
[378583519,1754917845479,-400.0,0.00016618,2]
[378583521,1754917845488,-400.0,0.00016618,2]
[378583523,1754917845497,-400.0,0.00016618,2]
[378583525,1754917845507,-400.0,0.00016618,2]
[378583527,1754917845516,-400.0,0.00016618,2]
[378583529,1754917845526,-400.0,0.00016618,2]
[378583531,1754917845535,-400.0,0.00016618,2]
[378583533,1754917845544,-400.83,0.00016618,2]
[378583535,1754917845554,-501.67,0.00016618,2]
[378583537,1754917845564,-400.0,0.00016618,2]
[378583539,1754917845573,-400.0,0.00016618,2]
[378583541,1754917845583,-400.0,0.00016618,2]
[378583543,1754917845591,-400.0,0.00016618,2]
[378583545,1754917845601,-400.0,0.00016618,2]
[378583547,1754917845610,-530.61,0.00016618,2]
[378583549,1754917845619,-434.89,0.00016618,2]
[378583551,1754917845629,-402.07,0.00016618,2]
[378583553,1754917845638,-400.0,0.00016618,2]
[378583555,1754917845648,-529.09,0.00016618,2]
[378583557,1754917845657,-400.0,0.00016618,2]
[378583559,1754917845667,-486.84,0.00016618,2]
[378583561,1754917845679,-540.44,0.00016618,2]
[378583563,1754917845690,-400.0,0.00016618,2]
[378583565,1754917845701,-400.0,0.00016618,2]
[378583567,1754917845710,-400.0,0.00016618,2]
[378583569,1754917845720,-504.16,0.00016618,2]
[378583571,1754917845729,-435.51,0.00016618,2]
[378583573,1754917845740,-510.46440772,0.00016618,2]
[378583575,1754917845749,-502.49577437,0.00016618,2]
[378583577,1754917845758,-400.0,0.00016618,2]
[378583579,1754917845768,-400.0,0.00016618,2]
[378583581,1754917845777,-400.0,0.00016618,2]
[378583583,1754917845787,-400.0,0.00016618,2]
[378583585,1754917845796,-400.0,0.00016618,2]
[378583587,1754917845805,-400.0,0.00016618,2]
[378583589,1754917845814,-400.0,0.00016618,2]
[378583591,1754917845823,-400.0,0.00016618,2]
[378583593,1754917845832,-400.0,0.00016618,2]
[378583595,1754917845841,-572.8,0.00016618,2]
[378583597,1754917845850,-403.76642832,0.00016618,2]
[378583599,1754917845859,-461.39,0.00016618,2]
[378583601,1754917845868,-400.0,0.00016618,2]
[378583603,1754917845877,-400.0,0.00016618,2]
[378583605,1754917845889,-400.0,0.00016618,2]
[378583608,1754917845899,-467.63,0.00016618,2]
[378583610,1754917845909,-400.0,0.00016618,2]
[378583612,1754917845918,-400.0,0.00016618,2]
[378583614,1754917845928,-400.0,0.00016618,2]
[378583616,1754917845939,-712.98,0.00016618,2]
[378583617,1754917845948,-400.0,0.00016618,2]
[378583619,1754917845958,-400.0,0.00016618,2]
[378583624,1754917845969,-520.02737833,0.00016618,2]
[378583628,1754917845979,-421.36,0.00016618,2]
[378583630,1754917845989,-400.0,0.00016618,2]
[378583632,1754917845998,-400.0,0.00016618,2]
[378583634,1754917846007,-766.64,0.00016618,2]
[378583636,1754917846016,-400.0,0.00016618,2]
[378583638,1754917846025,-400.0,0.00016618,2]
[378583640,1754917846034,-400.0,0.00016618,2]
[378583642,1754917846043,-400.0,0.00016618,2]
[378583644,1754917846053,-400.0,0.00016618,2]
[378583646,1754917846063,-400.0,0.00016618,2]
[378583648,1754917846072,-400.0,0.00016618,2]
[378583650,1754917846081,-628.68,0.00016618,2]
[378583652,1754917846090,-400.0,0.00016618,2]
[378583654,1754917846099,-400.0,0.00016618,2]
[378583656,1754917846109,-883.88,0.00016618,2]
[378583658,1754917846118,-400.0,0.00016618,2]
[378583660,1754917846127,-728.16,0.00016618,2]
[378583662,1754917846137,-400.0,0.00016618,2]
[378583664,1754917846146,-400.0,0.00016618,2]
[378583666,1754917846155,-400.0,0.00016618,2]
[378583668,1754917846165,-400.0,0.00016618,2]